fUSD/lending_fUSD_20260313
["ID","MTS","AMOUNT","RATE_DAILY","PERIOD"]
[408323560,1773421831926,-250.0,0.00018999,2]
[408323561,1773421831936,-250.0,0.00018999,2]
[408323562,1773421831945,-174.61919141,0.00018999,2]
[408323563,1773421831955,-250.0,0.00018999,2]
[408323564,1773421831965,-250.0,0.00018999,2]
[408323565,1773421831974,-250.0,0.00018999,2]
[408323566,1773421831984,-250.0,0.00018999,2]
[408323567,1773421831994,-500.0,0.00018999,2]
[408323568,1773421832003,-500.0,0.00018999,2]
[408323569,1773421832013,-500.0,0.00018999,2]
[408323570,1773421832022,-500.0,0.00018999,2]
[408323571,1773421832031,-500.0,0.00018999,2]
[408323572,1773421832040,-500.0,0.00018999,2]
[408323573,1773421832050,-500.0,0.00018999,2]
[408323574,1773421832059,-500.0,0.00018999,2]
[408323575,1773421832069,-500.0,0.00018999,2]
[408323576,1773421832079,-500.0,0.00018999,2]
[408323577,1773421832089,-500.0,0.00018999,2]
[408323578,1773421832100,-500.0,0.00018999,2]
[408323579,1773421832110,-2626.88533399,0.00019,2]
[408323580,1773421832121,-776.87456413,0.00019,2]
[408323581,1773421832130,-500.0,0.00019054,2]
[408323582,1773421832141,-151.0,0.00019054,2]
[408323583,1773421832151,-500.0,0.00019109,2]
[408323584,1773421832160,-337.7,0.00019111,2]
[408323585,1773421832169,-500.0,0.00019164,2]
[408323586,1773421832179,-150.0,0.00019179,2]
[408323587,1773421832188,-500.0,0.00019219,2]
[408323588,1773421832206,-380.0,0.00019233,2]
[408323589,1773421832218,-782.45,0.00019235,2]
[408323590,1773421832227,-528.0,0.0001927,2]
[408323591,1773421832237,-500.0,0.00019274,2]
[408323592,1773421832247,-528.0,0.00019303,2]
[408323593,1773421832257,-500.0,0.00019329,2]
[408323594,1773421832266,-528.0,0.00019357,2]
[408323595,1773421832276,-500.0,0.00019384,2]
[408323596,1773421832286,-2406.68,0.00019438,2]
[408323597,1773421832296,-500.0,0.00019439,2]
[408323598,1773421832306,-350.0,0.00019456,3]
[408323599,1773421832315,-350.0,0.00019462,2]
[408323600,1773421832325,-528.0,0.00019468,2]
[408323601,1773421832334,-500.0,0.00019494,2]
[408323602,1773421832344,-350.0,0.00019498,2]
[408323603,1773421832353,-153.56106976,0.00019509,2]
[408323604,1773421832363,-200.0,0.00019547,2]
[408323605,1773421832372,-181.08010149,0.00019547,2]
[408323606,1773421832382,-500.0,0.00019549,2]
[408323607,1773421832396,-528.0,0.00019587,2]
[408323608,1773421832406,-528.0,0.00019591,2]
[408323609,1773421832415,-741.0,0.00019595,2]
[408323610,1773421832425,-3854.01063303,0.000196,2]
[408323611,1773421832435,-741.0,0.00019639,2]
[408323612,1773421832444,-160.0,0.00019642,2]
[408323613,1773421832454,-311.46,0.00019644,2]
[408323614,1773421832463,-700.0,0.00019659,2]
[408323615,1773421832472,-528.0,0.00019685,2]
[408323616,1773421832482,-1680.0,0.00019725,2]
[408323617,1773421832491,-528.0,0.00019764,2]
[408323618,1773421832500,-753.77845,0.000198,2]
[408323619,1773421832510,-753.77846,0.000198,2]
[408323620,1773421832521,-2740.944,0.00019867,2]
[408323621,1773421832531,-854.05662894,0.0001987,2]
[408323622,1773421832544,-854.05662893,0.00019873,2]
[408323623,1773421832556,-854.05662893,0.00019877,2]
[408323624,1773421832567,-854.05662893,0.0001988,2]
[408323625,1773421832577,-741.0,0.00019882,2]
[408323626,1773421832587,-854.05662893,0.00019883,2]
[408323627,1773421832601,-854.05662893,0.00019887,2]
[408323628,1773421832612,-854.05662893,0.0001989,2]
[408323629,1773421832623,-854.05662893,0.00019893,2]
[408323630,1773421832632,-854.05662893,0.00019897,2]
[408323631,1773421832642,-887.50907136,0.000199,2]
[408323632,1773421832651,-5000.0,0.000199,2]
[408323633,1773421832661,-854.05662893,0.000199,2]
[408323634,1773421832671,-2018.54831328,0.000199,2]
[408323635,1773421832680,-714.24640066,0.000199,2]
[408323636,1773421832690,-165.59086001,0.000199,2]
[408323637,1773421832700,-393.0519504,0.000199,2]
[408323638,1773421832711,-10018.57,0.00019902,2]
[408323639,1773421832721,-2406.68,0.00019912,2]
[408323640,1773421832732,-528.0,0.00019929,2]
[408323641,1773421832743,-8387.9177306,0.00019959,2]
[408323642,1773421832754,-151.0,0.00019967,2]
[408323643,1773421832764,-151.0,0.00019967,2]
[408323644,1773421832775,-500.0,0.0001997,2]
[408323645,1773421832784,-1000.0,0.0001997,2]
[408323646,1773421832798,-500.0,0.0001997,2]
[408323647,1773421832809,-1000.0,0.0001997,2]
[408323648,1773421832820,-1000.0,0.0001997,2]
[408323649,1773421832830,-500.0,0.0001997,2]
[408323650,1773421832841,-1000.0,0.0001997,2]
[408323651,1773421832851,-1000.0,0.0001997,2]
[408323652,1773421832862,-500.0,0.0001997,2]
[408323653,1773421832872,-500.0,0.0001997,2]
[408323654,1773421832882,-500.0,0.0001997,2]
[408323655,1773421832892,-947.70236221,0.0001997,2]
[408323656,1773421832902,-1000.0,0.0001997,2]
[408323657,1773421832912,-1000.0,0.0001997,2]
[408323658,1773421832923,-1000.0,0.0001997,2]
[408323659,1773421832932,-1000.0,0.0001997,2]
[408323660,1773421832942,-1356.7780659,0.0001997,2]
[408323661,1773421832953,-196.25165977,0.00019973,2]
[408323662,1773421832963,-500.0,0.00019973,2]
[408323663,1773421832973,-2864.1474936,0.0001998,2]
[408323664,1773421832983,-295.76807635,0.0001999,2]
[408323665,1773421832993,-295.76807635,0.0001999,2]
[408323666,1773421833007,-295.76807635,0.0001999,2]
[408323667,1773421833017,-256.5,0.0001999,2]
[408323668,1773421833027,-256.5,0.0001999,2]
[408323669,1773421833038,-256.5,0.0001999,2]
[408323670,1773421833050,-256.5,0.0001999,2]
[408323671,1773421833060,-256.5,0.0001999,2]
[408323672,1773421833071,-151.0,0.00019996,2]
[408323673,1773421833082,-151.0,0.00019997,2]
[408323674,1773421833095,-151.0,0.00019997,2]
[408323675,1773421833106,-500.0,0.00019998,2]
[408323676,1773421833118,-156.17,0.00019999,2]
[408323677,1773421833128,-1904.72,0.00019999,2]
[408323678,1773421833139,-1904.72,0.00019999,2]
[408323679,1773421833150,-1904.72,0.00019999,2]
[408323680,1773421833161,-1904.72,0.00019999,2]
[408323681,1773421833176,-1904.72,0.00019999,2]
[408323682,1773421833188,-1904.72,0.00019999,2]
[408323683,1773421833198,-1904.72,0.00019999,2]
[408323684,1773421833208,-1904.72,0.00019999,2]
[408323685,1773421833218,-1904.72,0.00019999,2]
[408323686,1773421833232,-1904.72,0.00019999,2]
[408323687,1773421833243,-1904.72,0.00019999,2]
[408323688,1773421833252,-1904.72,0.00019999,2]
[408323689,1773421833263,-1904.72,0.00019999,2]
[408323690,1773421833273,-1904.72,0.00019999,2]
[408323691,1773421833283,-1904.72,0.00019999,2]
[408323692,1773421833293,-1904.72,0.00019999,2]
[408323693,1773421833303,-1904.72,0.00019999,2]
[408323694,1773421833313,-1904.72,0.00019999,2]
[408323695,1773421833323,-1904.72,0.00019999,2]
[408323696,1773421833333,-1904.72,0.00019999,2]
[408323697,1773421833343,-1904.72,0.00019999,2]
[408323698,1773421833354,-1904.72,0.00019999,2]
[408323699,1773421833365,-1904.72,0.00019999,2]
[408323700,1773421833375,-1904.90379142,0.00019999,2]
[408323701,1773421833385,-433.66808291,0.00019999,2]
[408323702,1773421833397,-500.0,0.00019999,2]
[408323703,1773421833407,-500.0,0.00019999,2]
[408323704,1773421833419,-500.0,0.00019999,2]
[408323705,1773421833433,-500.0,0.00019999,2]
[408323706,1773421833445,-500.0,0.00019999,2]
[408323707,1773421833455,-500.0,0.00019999,2]
[408323708,1773421833465,-500.0,0.00019999,2]
[408323709,1773421833475,-500.0,0.00019999,2]
[408323710,1773421833485,-500.0,0.00019999,2]
[408323711,1773421833495,-500.0,0.00019999,2]
[408323712,1773421833506,-425.37131106,0.00019999,2]
[408323713,1773421833516,-500.0,0.00019999,2]
[408323714,1773421833526,-500.0,0.00019999,2]
[408323715,1773421833537,-500.0,0.00019999,2]
[408323716,1773421833553,-500.0,0.00019999,2]
[408323717,1773421833563,-500.0,0.00019999,2]
[408323718,1773421833573,-500.0,0.00019999,2]
[408323719,1773421833585,-500.0,0.00019999,2]
[408323720,1773421833595,-500.0,0.00019999,2]
[408323721,1773421833605,-500.0,0.00019999,2]
[408323722,1773421833615,-500.0,0.00019999,2]
[408323723,1773421833626,-500.0,0.00019999,2]
[408323724,1773421833636,-618.15277206,0.00019999,2]
[408323725,1773421833646,-589.4444972,0.00019999,2]
[408323726,1773421833656,-2981.0,0.0002,2]
[408323727,1773421833667,-3827.0,0.0002,2]
[408323728,1773421833680,-1000.0,0.0002,7]
[408323729,1773421833690,-1000.0,0.0002,7]
[408323730,1773421833700,-130729.87499168,0.0002,2]
[408323731,1773421833718,-18263.45313182,0.0002,2]
[408323732,1773421833730,-93850.72000981,0.0002,2]
[408323733,1773421833742,-1948.15344742,0.0002,2]
[408323734,1773421834189,-544.02,0.0002,2]
[408323735,1773421834201,-823.641,0.0002,2]
[408323736,1773421834221,-912.28370051,0.0002,2]
[408323737,1773421834232,-47794.77335788,0.0002,2]
[408323810,1773421840238,-2000.0,0.000195,2]
[408323811,1773421840250,-2000.0,0.000196,2]
[408323812,1773421840260,-2000.0,0.000197,2]
[408323813,1773421840271,-2000.0,0.000198,2]
[408323814,1773421840282,-2000.0,0.000199,2]
[408323815,1773421840293,-55389.20249774,0.0002,2]
[408323816,1773421840305,-42740.37934232,0.0002,2]
[408323817,1773421840316,-4293.11368542,0.0002,2]
[408323821,1773421842654,-858.87950471,0.0002,2]
[408323887,1773421845596,-5613.46450068,0.0002,2]
[408323888,1773421845704,-1239.0,0.0002,2]
[408323889,1773421845716,-3145.76343513,0.0002,2]
[408323890,1773421845758,-310.25882034,0.0002,2]
[408323895,1773421886808,2000.0,0.00032877,120]
[408323906,1773422340622,5000.0,0.000141,2]
[408323915,1773422755133,-1907.55,0.00016252,2]
[408323916,1773422755154,-195.0,0.00017026,2]
[408323917,1773422755173,-195.0,0.00017541,2]
[408323918,1773422755193,-500.0,0.000178,2]
[408323919,1773422755212,-195.0,0.00017877,2]
[408323920,1773422755232,-252.01888429,0.00017877,2]
[408323921,1773422755253,-607.96568004,0.00017877,2]
[408323922,1773422755276,-195.0,0.00017877,2]
[408323923,1773422755296,-1200.0,0.00017898,2]
[408323924,1773422755316,-300.0,0.00017899,2]
[408323925,1773422755338,-5665.1655,0.000179,2]
[408323926,1773422755358,-500.0,0.00017975,2]
[408323927,1773422755378,-501.99047903,0.00017975,2]
[408323928,1773422755398,-500.0,0.00017975,2]
[408323929,1773422755419,-500.0,0.00017975,2]
[408323930,1773422755441,-1002.08186317,0.00017994,2]
[408323931,1773422755463,-1517.0,0.00017995,2]
[408323932,1773422755484,-1517.0,0.00017995,2]
[408323933,1773422755505,-1517.0,0.00017995,2]
[408323934,1773422755527,-1517.0,0.00017995,2]
[408323935,1773422755547,-1517.0,0.00017995,2]
[408323936,1773422755567,-1517.0,0.00017995,2]
[408323937,1773422755587,-1517.0,0.00017995,2]
[408323938,1773422755607,-1517.0,0.00017995,2]
[408323939,1773422755628,-1517.0,0.00017995,2]
[408323940,1773422755648,-1517.0,0.00017995,2]
[408323941,1773422755669,-1517.0,0.00017995,2]
[408323942,1773422755691,-1517.0,0.00017995,2]
[408323943,1773422755712,-1517.0,0.00017995,2]
[408323944,1773422755734,-1517.0,0.00017995,2]
[408323945,1773422755754,-1517.0,0.00017995,2]
[408323946,1773422755776,-1517.0,0.00017995,2]
[408323947,1773422755799,-1517.0,0.00017995,2]
[408323948,1773422755819,-1517.0,0.00017995,2]
[408323949,1773422755842,-1517.0,0.00017995,2]
[408323950,1773422755863,-369.87966227,0.00017995,2]
[408323951,1773422755884,-166.66,0.00018038,2]
[408323952,1773422755905,-167.27959726,0.0001818,2]
[408323953,1773422755927,-500.59506697,0.0001818,2]
[408323954,1773422755947,-500.0,0.0001818,2]
[408323955,1773422755966,-270.16,0.00018201,2]
[408323956,1773422755984,-166.66,0.00018418,2]
[408323957,1773422756003,-1697.56,0.00018561,2]
[408323958,1773422756022,-3139.42,0.00018715,2]
[408323959,1773422756042,-500.0,0.00018728,2]
[408323960,1773422756061,-166.66,0.00018797,2]
[408323961,1773422756081,-166.67,0.0001895,2]
[408323962,1773422756101,-1327.8,0.00018963,2]
[408323963,1773422756120,-200.0,0.00018963,2]
[408323964,1773422756140,-4360.48610934,0.0001899,2]
[408323965,1773422961083,-150.40430449,0.00017895,2]
[408323966,1773422997634,678.22,0.00025781,120]
[408323967,1773422998053,678.22,0.00028125,120]
[408323973,1773423031612,-190.14869551,0.00017895,2]
[408323974,1773423031622,-109.85130449,0.0001875,2]
[408323975,1773423031665,-568.36869551,0.0001875,2]
[408323976,1773423031676,-3240.0,0.00018798,2]
[408323977,1773423031686,-274.18,0.00018821,2]
[408323978,1773423031696,-1200.0,0.00018989,2]
[408323979,1773423031706,-9335.59000758,0.0001899,2]
[408323980,1773423031716,-500.0,0.00018999,2]
[408323981,1773423031725,-500.0,0.00018999,2]
[408323982,1773423031734,-500.0,0.00018999,2]
[408323983,1773423031745,-500.0,0.00018999,2]
[408323984,1773423031755,-174.61919141,0.00018999,2]
[408323985,1773423031765,-250.0,0.00018999,2]
[408323986,1773423031775,-250.0,0.00018999,2]
[408323987,1773423031785,-200.0,0.00018999,2]
[408323988,1773423031795,-500.0,0.00018999,2]
[408323989,1773423031806,-500.0,0.00018999,2]
[408323990,1773423031816,-500.0,0.00018999,2]
[408323991,1773423031826,-350.0,0.0001903,2]
[408323992,1773423031836,-500.0,0.00019054,2]
[408323993,1773423031845,-350.0,0.00019069,2]
[408323994,1773423031855,-500.0,0.00019109,2]
[408323995,1773423031868,-166.66,0.00019177,2]
[408323996,1773423031879,-231.56,0.00019292,2]
[408323997,1773423031889,-168.0,0.00019344,2]
[408323998,1773423031902,-153.56106976,0.00019511,2]
[408323999,1773423031913,-181.08010149,0.00019547,2]
[408324000,1773423031923,-200.0,0.00019547,2]
[408324001,1773423031933,-166.66,0.00019557,2]
[408324003,1773423031944,-168.0,0.00019651,2]
[408324005,1773423031954,-168.0,0.00019654,2]
[408324007,1773423031963,-2000.0,0.000197,2]
[408324009,1773423031972,-160.0,0.0001974,2]
[408324011,1773423031982,-1000.0,0.00019752,2]
[408324013,1773423031992,-168.0,0.00019769,2]
[408324015,1773423032001,-500.5198783,0.00019772,2]
[408324017,1773423032011,-500.0,0.00019773,2]
[408324019,1773423032021,-152.15730722,0.0001979,2]
[408324021,1773423032030,-45565.1315,0.00019799,2]
[408324023,1773423032039,-1350.029,0.000198,2]
[408324025,1773423032049,-1174.04948505,0.000198,2]
[408324027,1773423032058,-2297.67910619,0.000198,2]
[408324029,1773423032068,-1323.90068,0.000198,2]
[408324031,1773423032077,-1323.90069,0.000198,2]
[408324032,1773423032087,-234.5008,0.000198,2]
[408324033,1773423032097,-526.41200558,0.000198,2]
[408324034,1773423032107,-152.68821992,0.00019804,2]
[408324035,1773423032116,-1174.04948499,0.00019811,2]
[408324036,1773423032125,-2297.67910618,0.00019811,2]
[408324037,1773423032134,-526.41200558,0.00019814,2]
[408324038,1773423032144,-133.54536146,0.00019819,2]
[408324039,1773423032157,-34.45463854,0.00019819,2]
[408324040,1773423032167,-1174.04948499,0.00019822,2]
[408324041,1773423032176,-2297.67910618,0.00019822,2]
[408324042,1773423032186,-526.41200558,0.00019829,2]
[408324043,1773423032196,-1174.04948499,0.00019833,2]
[408324044,1773423032206,-2297.67910618,0.00019833,2]
[408324045,1773423032215,-526.41200558,0.00019843,2]
[408324046,1773423032225,-1174.04948499,0.00019844,2]
[408324047,1773423032235,-2297.67910618,0.00019844,2]
[408324048,1773423032245,-279.83341425,0.00019847,2]
[408324049,1773423032254,-1174.04948499,0.00019856,2]
[408324050,1773423032264,-2297.67910618,0.00019856,2]
[408324051,1773423032274,-269.16,0.00019865,2]
[408324052,1773423032283,-274.18,0.00019867,2]
[408324053,1773423032293,-1174.04948499,0.00019867,2]
[408324054,1773423032303,-2297.67910618,0.00019867,2]
[408324055,1773423032313,-1174.04948499,0.00019878,2]
[408324056,1773423032322,-2297.67910618,0.00019878,2]
[408324057,1773423032332,-2192.755,0.00019883,2]
[408324058,1773423032342,-1174.04948499,0.00019889,2]
[408324059,1773423032352,-2297.67910618,0.00019889,2]
[408324060,1773423032362,-500.0,0.00019899,2]
[408324061,1773423032372,-554.34014391,0.00019899,2]
[408324062,1773423032381,-588.84,0.00019899,2]
[408324063,1773423032390,-278.22,0.00019899,2]
[408324064,1773423032399,-500.0,0.00019899,2]
[408324065,1773423032409,-500.0,0.00019899,2]
[408324066,1773423032418,-500.0,0.00019899,2]
[408324067,1773423032428,-224.47108027,0.00019899,2]
[408324068,1773423032437,-500.0,0.00019899,2]
[408324069,1773423032446,-500.0,0.00019899,2]
[408324070,1773423032455,-500.0,0.00019899,2]
[408324071,1773423032464,-402.01697467,0.00019899,2]
[408324072,1773423032473,-500.0,0.00019899,2]
[408324073,1773423032483,-254.46147411,0.00019899,2]
[408324074,1773423032492,-245.25595034,0.00019899,2]
[408324075,1773423032502,-500.0,0.00019899,2]
[408324076,1773423032511,-322.6119,0.000199,2]
[408324077,1773423032522,-500.0,0.000199,2]
[408324078,1773423032531,-500.0,0.000199,2]
[408324079,1773423032541,-500.0,0.000199,2]
[408324080,1773423032550,-337.53416247,0.000199,2]
[408324081,1773423032559,-98167.87293934,0.000199,2]
[408324082,1773423032571,-8334.51178822,0.000199,2]
[408324084,1773423032594,-1668.8908527,0.000199,2]
[408324086,1773423032605,-2752.87872731,0.000199,2]
[408324088,1773423032617,-2369.22227224,0.000199,2]
[408324090,1773423032627,-626.10704283,0.000199,2]
[408324092,1773423032638,-303.75798623,0.000199,2]
[408324094,1773423032649,-676.49616651,0.000199,2]
[408324184,1773423037781,-1538.38,0.00018724,2]
[408324185,1773423037790,-526.41200558,0.00019857,2]
[408324186,1773423037800,-29649.658072,0.000199,2]
[408324187,1773423037812,-308.5174995,0.000199,2]
[408324188,1773423037834,-571.98805135,0.000199,2]
[408324189,1773423037890,-2328.54196188,0.000199,2]
[408324191,1773423038107,-626.5893223,0.000199,2]
[408324192,1773423038120,-2972.72792743,0.000199,2]
[408324193,1773423038133,-1334.87055307,0.000199,2]
[408324194,1773423038144,-943.95867498,0.000199,2]
[408324195,1773423038156,-903.93718342,0.000199,2]
[408324196,1773423038174,-1250.0,0.000199,2]
[408324214,1773423041464,-488.29445774,0.000197,2]
[408324215,1773423041474,-2126.46935447,0.000198,2]
[408324216,1773423041485,-912.1691328,0.000198,2]
[408324217,1773423041518,-850.0,0.000198,2]
[408324218,1773423041529,-892.18335078,0.000198,2]
[408324219,1773423041540,-1902.07,0.000198,2]
[408324220,1773423041551,-73.14616195,0.000198,2]
[408324221,1773423041561,-2000.0,0.000198,2]
[408324222,1773423041572,-4559.98976373,0.000199,2]
[408324223,1773423041583,-350.33533698,0.000199,2]
[408324224,1773423042002,-811.527082,0.00019,2]
[408324225,1773423042013,-1969.60076496,0.000199,2]
[408324226,1773423042025,-3600.0,0.000199,2]
[408324227,1773423042050,-130532.36772139,0.000199,2]
[408324242,1773423042802,-3637.55493272,0.000199,2]
[408324246,1773423042857,-48446.57877966,0.000199,2]
[408324247,1773423042875,-47298.60256516,0.000199,2]
[408324248,1773423043071,-11723.64423464,0.000199,2]
[408324275,1773423043540,-1556.64557945,0.000199,2]
[408324277,1773423043551,-5000.0,0.000199,2]
[408324279,1773423043560,-1679.26929822,0.000199,2]
[408324281,1773423043570,-1174.04948499,0.000199,2]
[408324283,1773423043579,-2297.67910618,0.000199,2]
[408324285,1773423043589,-1315.9215132,0.000199,2]
[408324287,1773423043598,-197.23311885,0.000199,2]
[408324289,1773423043607,-2000.0,0.000199,2]
[408324291,1773423043616,-166.66,0.00019937,2]
[408324293,1773423043627,-3473.5548972,0.0001997,2]
[408324295,1773423043637,-492.69437203,0.00019973,2]
[408324297,1773423043646,-500.0,0.00019973,2]
[408324299,1773423043656,-500.0,0.00019973,2]
[408324301,1773423043666,-621.90362035,0.00019973,2]
[408324303,1773423043675,-500.3680898,0.00019973,2]
[408324305,1773423043685,-500.0,0.00019973,2]
[408324307,1773423043694,-161.62483646,0.00019973,2]
[408324309,1773423043704,-500.92517317,0.00019973,2]
[408324311,1773423043714,-500.0,0.00019973,2]
[408324313,1773423043724,-1000.0,0.00019984,2]
[408324315,1773423043733,-1000.0,0.00019984,2]
[408324317,1773423043743,-151.0,0.00019997,2]
[408324319,1773423043753,-151.0,0.00019997,2]
[408324321,1773423043762,-246.0348213,0.00019998,2]
[408324323,1773423043775,-253.9651787,0.00019998,2]
[408324325,1773423043784,-500.0,0.00019998,2]
[408324327,1773423043794,-32.0348213,0.00019998,2]
[408324329,1773423043806,-467.9651787,0.00019998,2]
[408324331,1773423043815,-132.03390762,0.00019999,2]
[408324364,1773423045668,-85.0221004,0.00019999,2]
[408324366,1773423045684,-82.94399198,0.00019999,2]
[408324367,1773423045697,-300.0,0.00019999,2]
[408324368,1773423045712,-456.96597722,0.00019999,5]
[408324369,1773423045726,-696.77283446,0.00019999,5]
[408324370,1773423045738,-300.15125318,0.00019999,2]
[408324371,1773423045757,-526.41200558,0.00019871,2]
[408324372,1773423045769,-199.84874682,0.00019999,2]
[408324373,1773423045781,-500.0,0.00019999,2]
[408324374,1773423045793,-500.0,0.00019999,2]
[408324375,1773423045803,-500.0,0.00019999,2]
[408324376,1773423045818,-500.0,0.00019999,2]
[408324377,1773423045833,-500.0,0.00019999,2]
[408324378,1773423045843,-500.0,0.00019999,2]
[408324379,1773423045854,-500.0,0.00019999,2]
[408324380,1773423045865,-500.0,0.00019999,2]
[408324381,1773423045877,-500.0,0.00019999,2]
[408324382,1773423045890,-500.0,0.00019999,2]
[408324383,1773423045902,-500.0,0.00019999,2]
[408324384,1773423045917,-500.0,0.00019999,2]
[408324385,1773423045929,-500.0,0.00019999,2]
[408324386,1773423045940,-500.0,0.00019999,2]
[408324387,1773423045952,-500.0,0.00019999,2]
[408324388,1773423045964,-500.0,0.00019999,2]
[408324389,1773423045975,-500.0,0.00019999,2]
[408324390,1773423045986,-500.0,0.00019999,2]
[408324391,1773423045999,-427.42297631,0.00019999,2]
[408324392,1773423046010,-500.0,0.00019999,2]
[408324393,1773423046021,-500.0,0.00019999,2]
[408324394,1773423046039,-500.0,0.00019999,2]
[408324395,1773423046052,-500.0,0.00019999,2]
[408324396,1773423046065,-500.0,0.00019999,2]
[408324397,1773423046077,-500.0,0.00019999,2]
[408324398,1773423046090,-500.0,0.00019999,2]
[408324399,1773423046102,-500.0,0.00019999,2]
[408324400,1773423046113,-500.0,0.00019999,2]
[408324401,1773423046124,-500.0,0.00019999,2]
[408324402,1773423046136,-500.0,0.00019999,2]
[408324403,1773423046147,-500.0,0.00019999,2]
[408324404,1773423046156,-500.0,0.00019999,2]
[408324405,1773423046166,-500.0,0.00019999,2]
[408324406,1773423046175,-500.0,0.00019999,2]
[408324407,1773423046185,-500.0,0.00019999,2]
[408324408,1773423046194,-500.0,0.00019999,2]
[408324409,1773423046202,-500.0,0.00019999,2]
[408324410,1773423046213,-250.11553072,0.00019999,2]
[408324411,1773423046222,-500.0,0.00019999,2]
[408324412,1773423046234,-500.0,0.00019999,2]
[408324413,1773423046245,-500.0,0.00019999,2]
[408324414,1773423046256,-500.0,0.00019999,2]
[408324415,1773423046268,-500.0,0.00019999,2]
[408324416,1773423046281,-500.0,0.00019999,2]
[408324417,1773423046293,-640.28,0.00019999,2]
[408324419,1773423046304,-500.0,0.00019999,2]
[408324420,1773423046315,-500.0,0.00019999,2]
[408324421,1773423046326,-500.0,0.00019999,2]
[408324422,1773423046338,-500.0,0.00019999,2]
[408324423,1773423046350,-500.0,0.00019999,2]
[408324424,1773423046361,-500.0,0.00019999,2]
[408324425,1773423046373,-500.0,0.00019999,2]
[408324426,1773423046384,-500.0,0.00019999,2]
[408324427,1773423046395,-183.09,0.00019999,2]
[408324428,1773423046407,-500.0,0.00019999,2]
[408324429,1773423046418,-500.0,0.00019999,2]
[408324430,1773423046429,-500.0,0.00019999,2]
[408324431,1773423046439,-500.0,0.00019999,2]
[408324432,1773423046450,-500.0,0.00019999,2]
[408324433,1773423046462,-500.0,0.00019999,2]
[408324434,1773423046472,-500.0,0.00019999,2]
[408324435,1773423046483,-500.0,0.00019999,2]
[408324436,1773423046495,-500.0,0.00019999,2]
[408324437,1773423046506,-500.0,0.00019999,2]
[408324438,1773423046516,-500.0,0.00019999,2]
[408324439,1773423046528,-500.0,0.00019999,2]
[408324440,1773423046540,-500.0,0.00019999,2]
[408324441,1773423046551,-500.0,0.00019999,2]
[408324442,1773423046563,-500.0,0.00019999,2]
[408324443,1773423046574,-325.77326669,0.00019999,2]
[408324444,1773423046586,-589.9850005,0.00019999,2]
[408324445,1773423046597,-500.0,0.00019999,2]
[408324446,1773423046608,-500.0,0.00019999,2]
[408324447,1773423046619,-500.0,0.00019999,2]
[408324448,1773423046629,-500.0,0.00019999,2]
[408324449,1773423046641,-500.0,0.00019999,2]
[408324450,1773423046652,-500.0,0.00019999,2]
[408324451,1773423046664,-174.50222317,0.00019999,2]
[408324452,1773423046675,-533.27420701,0.00019999,2]
[408324453,1773423046685,-3000.0,0.00019999,2]
[408324454,1773423046698,-326.21964178,0.00019999,2]
[408324455,1773423046710,-253.57527585,0.00019999,2]
[408324456,1773423046721,-254.42286274,0.00019999,2]
[408324457,1773423046732,-500.0,0.00019999,2]
[408324458,1773423046743,-568.88467364,0.00019999,2]
[408324459,1773423046755,-2857.0,0.0002,2]